fUST/lending_fUST_20250421
["ID","MTS","AMOUNT","RATE_DAILY","PERIOD"]
[358491091,1745207437386,-681.58,0.00019178,2]
[358491092,1745207437396,-500.0,0.00019178,2]
[358491093,1745207437405,-478.18769256,0.00019178,2]
[358491094,1745207437415,-500.0,0.00019178,2]
[358491095,1745207437424,-500.0,0.00019178,2]
[358491096,1745207437434,-500.0,0.00019178,2]
[358491097,1745207437444,-1120.86,0.00019178,2]
[358491098,1745207437453,-500.0,0.00019178,2]
[358491099,1745207437463,-500.0,0.00019178,2]
[358491100,1745207437473,-500.0,0.00019178,2]
[358491101,1745207437482,-500.0,0.00019178,2]
[358491102,1745207437492,-500.0,0.00019178,2]
[358491103,1745207437501,-500.0,0.00019178,2]
[358491104,1745207437510,-500.0,0.00019178,2]
[358491105,1745207437520,-500.0,0.00019178,2]
[358491106,1745207437529,-500.0,0.00019178,2]
[358491107,1745207437539,-500.0,0.00019178,2]
[358491108,1745207437549,-500.0,0.00019178,2]
[358491109,1745207437558,-500.0,0.00019178,2]
[358491110,1745207437568,-500.0,0.00019178,2]
[358491111,1745207437578,-500.0,0.00019178,2]
[358491112,1745207437588,-500.0,0.00019178,2]
[358491113,1745207437598,-500.0,0.00019178,2]
[358491114,1745207437607,-440.55143231,0.00019178,2]
[358491115,1745207437617,-500.0,0.00019178,2]
[358491116,1745207437627,-500.0,0.00019178,2]
[358491117,1745207437637,-500.0,0.00019178,2]
[358491118,1745207437646,-500.0,0.00019178,2]
[358491119,1745207437655,-500.0,0.00019178,2]
[358491120,1745207437665,-2762.39,0.00019178,2]
[358491121,1745207437675,-500.0,0.00019178,2]
[358491122,1745207437684,-500.0,0.00019178,2]
[358491123,1745207437693,-500.0,0.00019178,2]
[358491124,1745207437703,-500.0,0.00019178,2]
[358491125,1745207437712,-500.0,0.00019178,2]
[358491126,1745207437721,-500.0,0.00019178,2]
[358491127,1745207437731,-500.0,0.00019178,2]
[358491128,1745207437740,-622.63257657,0.00019178,2]
[358491129,1745207437750,-500.0,0.00019178,2]
[358491130,1745207437760,-500.0,0.00019178,2]
[358491131,1745207437770,-500.0,0.00019178,2]
[358491132,1745207437779,-500.0,0.00019178,2]
[358491133,1745207437789,-500.0,0.00019178,2]
[358491134,1745207437798,-500.0,0.00019178,2]
[358491136,1745207437808,-500.0,0.00019178,2]
[358491138,1745207437818,-500.0,0.00019178,2]
[358491139,1745207437827,-518.38,0.00019178,2]
[358491140,1745207437837,-500.0,0.00019178,2]
[358491141,1745207437846,-1321.35,0.00019178,2]
[358491142,1745207437855,-500.0,0.00019178,2]
[358491143,1745207437865,-500.0,0.00019178,2]
[358491144,1745207437875,-500.0,0.00019178,2]
[358491145,1745207437885,-861.37,0.00019178,2]
[358491147,1745207437895,-500.0,0.00019178,2]
[358491149,1745207437904,-2703.4,0.00019178,2]
[358491150,1745207437914,-518.55596353,0.00019178,2]
[358491151,1745207437923,-500.0,0.00019178,2]
[358491152,1745207437933,-500.0,0.00019178,2]
[358491153,1745207437942,-500.0,0.00019178,2]
[358491154,1745207437951,-500.0,0.00019178,2]
[358491155,1745207437961,-500.0,0.00019178,2]
[358491156,1745207437970,-500.0,0.00019178,2]
[358491157,1745207437982,-750.77,0.00019178,2]
[358491158,1745207437991,-500.0,0.00019178,2]
[358491159,1745207438001,-500.0,0.00019178,2]
[358491161,1745207438010,-500.0,0.00019178,2]
[358491162,1745207438019,-583.96878903,0.00019178,2]
[358491164,1745207438029,-500.0,0.00019178,2]
[358491166,1745207438038,-500.0,0.00019178,2]
[358491168,1745207438047,-500.0,0.00019178,2]
[358491170,1745207438057,-500.0,0.00019178,2]
[358491172,1745207438066,-500.0,0.00019178,2]
[358491174,1745207438075,-500.0,0.00019178,2]
[358491175,1745207438084,-500.0,0.00019178,2]
[358491176,1745207438093,-511.88,0.00019178,2]
[358491177,1745207438102,-9002.94,0.00019178,2]
[358491178,1745207438111,-500.0,0.00019178,2]
[358491179,1745207438120,-500.0,0.00019178,2]
[358491180,1745207438129,-500.0,0.00019178,2]
[358491181,1745207438140,-500.0,0.00019178,2]
[358491182,1745207438151,-500.0,0.00019178,2]
[358491183,1745207438160,-500.0,0.00019178,2]
[358491184,1745207438169,-500.0,0.00019178,2]
[358491185,1745207438178,-326.57460617,0.00019178,2]
[358491186,1745207438187,-500.0,0.00019178,2]
[358491187,1745207438196,-500.0,0.00019178,2]
[358491188,1745207438205,-500.0,0.00019178,2]
[358491189,1745207438214,-500.0,0.00019178,2]
[358491190,1745207438225,-500.0,0.00019178,2]
[358491192,1745207438236,-500.0,0.00019178,2]
[358491194,1745207438245,-500.0,0.00019178,2]
[358491196,1745207438254,-500.0,0.00019178,2]
[358491208,1745207438263,-500.0,0.00019178,2]
[358491211,1745207438373,-151.0,0.00019178,2]
[358491213,1745207438383,-500.0,0.00019178,2]
[358491215,1745207438392,-14774.19,0.00019178,2]
[358491217,1745207438402,-500.0,0.00019178,2]
[358491219,1745207438411,-500.0,0.00019178,2]
[358491221,1745207438421,-500.0,0.00019178,2]
[358491223,1745207438431,-500.0,0.00019178,2]
[358491225,1745207438440,-500.0,0.00019178,2]
[358491227,1745207438450,-500.0,0.00019178,2]
[358491229,1745207438461,-500.0,0.00019178,2]
[358491231,1745207438470,-500.0,0.00019178,2]
[358491233,1745207438480,-500.0,0.00019178,2]
[358491235,1745207438489,-500.0,0.00019178,2]
[358491237,1745207438498,-500.0,0.00019178,2]
[358491239,1745207438508,-500.0,0.00019178,2]
[358491241,1745207438517,-500.0,0.00019178,2]
[358491243,1745207438527,-300.0,0.00019178,2]
[358491246,1745207438537,-3167.68619438,0.00019329,2]
[358491248,1745207438547,-1663.5106939,0.00019354,2]
[358491250,1745207438556,-195.10731396,0.000194,2]
[358491252,1745207438567,-505.21232006,0.00019452,2]
[358491254,1745207438576,-500.0,0.00019452,2]
[358491256,1745207438586,-500.0,0.00019452,2]
[358491258,1745207438596,-500.0,0.00019452,2]
[358491260,1745207438606,-500.0,0.00019452,2]
[358491262,1745207438616,-500.0,0.00019452,2]
[358491264,1745207438627,-500.0,0.00019452,2]
[358491267,1745207438641,-500.0,0.00019452,2]
[358491269,1745207438650,-171.9097781,0.00019452,2]
[358491271,1745207438659,-500.0,0.00019452,2]
[358491273,1745207438669,-500.0,0.00019452,2]
[358491275,1745207438678,-500.0,0.00019452,2]
[358491277,1745207438688,-500.0,0.00019452,2]
[358491279,1745207438698,-347.32243855,0.00019452,2]
[358491281,1745207438706,-500.0,0.00019452,2]
[358491283,1745207438716,-500.0,0.00019452,2]
[358491285,1745207438725,-500.0,0.00019452,2]
[358491287,1745207438734,-500.0,0.00019452,2]
[358491289,1745207438744,-505.94493835,0.00019452,2]
[358491291,1745207438753,-500.0,0.00019452,2]
[358491293,1745207438763,-500.0,0.00019452,2]
[358491295,1745207438774,-500.0,0.00019452,2]
[358491297,1745207438786,-500.0,0.00019452,2]
[358491299,1745207438796,-500.0,0.00019452,2]
[358491301,1745207438809,-500.0,0.00019452,2]
[358491304,1745207438819,-500.0,0.00019452,2]
[358491306,1745207438828,-500.0,0.00019452,2]
[358491307,1745207438838,-500.0,0.00019452,2]
[358491309,1745207438847,-55.71926022,0.00019452,2]
[358491316,1745207438903,-444.28073978,0.00019452,2]
[358491318,1745207438913,-506.65169237,0.00019452,2]
[358491320,1745207438922,-499.17555785,0.00019452,2]
[358491329,1745207439232,-500.0,0.00019178,2]
[358491330,1745207439242,-151.0,0.00019178,2]
[358491331,1745207439252,-0.82444215,0.00019452,2]
[358491332,1745207439262,-559.2,0.00019452,2]
[358491333,1745207439271,-34.92795379,0.00019452,2]
[358491334,1745207439297,-465.07204621,0.00019452,2]
[358491335,1745207439307,-500.0,0.00019452,2]
[358491336,1745207439316,-500.0,0.00019452,2]
[358491337,1745207439325,-500.0,0.00019452,2]
[358491338,1745207439335,-500.0,0.00019452,2]
[358491339,1745207439345,-500.0,0.00019452,2]
[358491340,1745207439354,-500.0,0.00019452,2]
[358491341,1745207439364,-173.33294718,0.00019452,2]
[358491342,1745207439376,-337.75726768,0.00019452,2]
[358491343,1745207439385,-468.93129003,0.00019452,2]
[358491344,1745207439399,-31.06870997,0.00019452,2]
[358491345,1745207439409,-500.0,0.00019452,2]
[358491346,1745207439418,-500.0,0.00019452,2]
[358491347,1745207439428,-269.60265407,0.00019452,2]
[358491348,1745207439440,-230.39734593,0.00019452,2]
[358491349,1745207439450,-500.0,0.00019452,2]
[358491350,1745207439459,-500.0,0.00019452,2]
[358491351,1745207439469,-160.40265408,0.00019452,2]
[358491352,1745207439481,-339.59734592,0.00019452,2]
[358491353,1745207439490,-645.53902645,0.00019452,2]
[358491358,1745207440686,-155.41472256,0.00019078,2]
[358491359,1745207440696,-97.58976648,0.00019452,2]
[358491360,1745207440708,-1233.64120707,0.00019452,2]
[358491361,1745207440718,-500.0,0.00019452,2]
[358491362,1745207440729,-500.0,0.00019452,2]
[358491363,1745207440738,-564.1,0.00019452,2]
[358491364,1745207440748,-500.0,0.00019452,2]
[358491365,1745207440757,-405.60666268,0.00019452,2]
[358491367,1745207443397,-347.90720868,0.00019178,2]
[358491368,1745207443409,-152.09279132,0.00019178,2]
[358491369,1745207443418,-300.8099125,0.00019178,2]
[358491370,1745207443449,-199.1900875,0.00019178,2]
[358491371,1745207443459,-500.0,0.00019178,2]
[358491372,1745207443468,-120.35533362,0.00019178,2]
[358491391,1745207446320,-155.0,0.00019063,2]
[358491393,1745207446329,-155.0,0.00019063,2]
[358491407,1745207446451,-379.64466638,0.00019178,2]
[358491409,1745207446462,-946.47560852,0.00019178,2]
[358491413,1745207446474,-819.64835284,0.00019178,2]
[358491416,1745207446494,-5071.29603864,0.00019178,2]
[358491418,1745207446503,-1812.04,0.00019178,2]
[358491420,1745207446512,-2200.0,0.00019199,2]
[358491422,1745207446521,-94.39333732,0.00019452,2]
[358491424,1745207446530,-500.0,0.00019452,2]
[358491426,1745207446539,-293.21843148,0.00019452,2]
[358491428,1745207446548,-500.0,0.00019452,2]
[358491430,1745207446558,-990.43,0.00019452,2]
[358491432,1745207446568,-500.0,0.00019452,2]
[358491434,1745207446578,-500.0,0.00019452,2]
[358491436,1745207446587,-500.0,0.00019452,2]
[358491438,1745207446596,-500.0,0.00019452,2]
[358491440,1745207446606,-502.50728322,0.00019452,2]
[358491442,1745207446615,-500.0,0.00019452,2]
[358491444,1745207446624,-504.16775234,0.00019452,2]
[358491446,1745207446633,-500.0,0.00019452,2]
[358491448,1745207446643,-500.0,0.00019452,2]
[358491450,1745207446652,-500.0,0.00019452,2]
[358491452,1745207446661,-504.22189077,0.00019452,2]
[358491454,1745207446670,-500.0,0.00019452,2]
[358491456,1745207446679,-191.08385626,0.00019452,2]
[358491459,1745207446691,-253.9710398,0.00019452,2]
[358491520,1745207552161,-240.991854,0.00016866,2]
[358491521,1745207602656,-152.86869677,0.00016001,2]
[358491522,1745207644283,-166.47409281,0.00016,2]
[358491524,1745207703861,-245.93256,0.00016,2]
[358491525,1745207765474,-211.79431192,0.00015951,2]
[358491528,1745207823438,-234.15551216,0.00015951,2]
[358491529,1745207883772,-92.42567892,0.00015951,2]
[358491530,1745207883796,-70.87436944,0.00016,2]
[358491531,1745207894185,-166.794634,0.00015918,2]
[358491532,1745207942922,-181.205366,0.00015918,2]
[358491533,1745207945610,-152.0,0.00015918,2]
[358491534,1745208003872,-270.49792081,0.00015918,2]
[358491536,1745208053522,-252.980771,0.00015868,2]
[358491537,1745208066172,-300.0,0.00015917,2]
[358491538,1745208123017,-155.6787245,0.00015917,2]
[358491539,1745208183575,-286.6775438,0.00015917,2]
[358491540,1745208245666,-214.1465643,0.00015917,2]
[358491541,1745208304412,-85.8534357,0.00015917,2]
[358491542,1745208304438,-94.3136945,0.00015917,2]
[358491543,1745208364729,-300.0,0.00015917,2]
[358491544,1745208370714,-300.0,0.00015917,2]
[358491545,1745208423079,-300.0,0.00015917,2]
[358491547,1745208460261,-602.2142393,0.00015918,2]
[358491548,1745208484003,-214.146564,0.00015917,2]
[358491549,1745208544033,239.53968437,0.00025,30]
[358491551,1745208546358,-253.56288377,0.00015917,2]
[358491552,1745208559217,-46.43711623,0.00015917,2]
[358491553,1745208559240,-112.24588377,0.00015917,2]
[358491554,1745208603583,-187.75411623,0.00015917,2]
[358491555,1745208603606,-112.24588377,0.00015917,2]
[358491556,1745208606900,-187.75411623,0.00015917,2]
[358491557,1745208625786,-340.05821124,0.00015918,2]
[358491591,1745208632467,-768.13289045,0.00015918,2]
[358491592,1745208632478,-500.0,0.00015918,2]
[358491593,1745208632488,-500.0,0.00015918,2]
[358491594,1745208632498,-500.0,0.00015918,2]
[358491595,1745208632508,-500.0,0.00015918,2]
[358491596,1745208632518,-423.95866004,0.00015918,2]
[358491597,1745208632528,-861.1009271,0.00015918,2]
[358491598,1745208632538,-3494.618329,0.00015918,2]
[358491599,1745208632549,-24900.0,0.00015945,2]
[358491600,1745208632562,-611.75855916,0.00016766,2]
[358491601,1745208632572,-759.008146,0.00016866,2]
[358491602,1745208632582,-250.0,0.00016866,2]
[358491603,1745208632593,-461.00100897,0.00016873,2]
[358491604,1745208632604,-540.34210464,0.00016966,2]
[358491605,1745208632614,-500.0,0.00016966,2]
[358491606,1745208632623,-500.0,0.00016966,2]
[358491607,1745208632635,-392.52330355,0.00016966,2]
[358491608,1745208632645,-500.0,0.00016966,2]
[358491609,1745208632654,-500.0,0.00016966,2]
[358491610,1745208632664,-368.77369352,0.00016966,2]
[358491611,1745208632674,-337.91996822,0.00016966,2]
[358491612,1745208632684,-500.0,0.00016966,2]
[358491613,1745208632693,-500.0,0.00016966,2]
[358491614,1745208632702,-500.0,0.00016966,2]
[358491615,1745208632711,-500.0,0.00016966,2]
[358491616,1745208632721,-500.0,0.00016966,2]
[358491617,1745208632731,-500.0,0.00016966,2]
[358491618,1745208632740,-500.0,0.00016966,2]
[358491619,1745208632749,-500.0,0.00016966,2]
[358491620,1745208632759,-500.0,0.00016966,2]
[358491621,1745208632768,-500.0,0.00016966,2]
[358491622,1745208632778,-500.0,0.00016966,2]
[358491623,1745208632787,-500.0,0.00016966,2]
[358491624,1745208632797,-500.0,0.00016966,2]
[358491625,1745208632808,-500.0,0.00016966,2]
[358491626,1745208632817,-500.0,0.00016966,2]
[358491627,1745208632827,-500.0,0.00016966,2]
[358491628,1745208632836,-500.0,0.00016966,2]
[358491629,1745208632846,-500.0,0.00016966,2]
[358491630,1745208632856,-500.0,0.00016966,2]
[358491631,1745208632865,-500.0,0.00016966,2]
[358491632,1745208632874,-500.0,0.00016966,2]
[358491633,1745208632884,-500.0,0.00016966,2]
[358491634,1745208632894,-500.0,0.00016966,2]
[358491635,1745208632903,-500.0,0.00016966,2]
[358491636,1745208632913,-500.0,0.00016966,2]
[358491637,1745208632922,-500.0,0.00016966,2]
[358491638,1745208632931,-500.0,0.00016966,2]
[358491639,1745208632940,-500.0,0.00016966,2]
[358491640,1745208632950,-500.0,0.00016966,2]
[358491641,1745208632960,-500.0,0.00016966,2]
[358491642,1745208632970,-500.0,0.00016966,2]
[358491643,1745208632979,-500.0,0.00016966,2]
[358491644,1745208632989,-500.0,0.00016966,2]
[358491645,1745208632998,-500.0,0.00016966,2]
[358491646,1745208633008,-500.0,0.00016966,2]
[358491647,1745208633017,-500.0,0.00016966,2]
[358491648,1745208633027,-500.0,0.00016966,2]
[358491649,1745208633036,-500.0,0.00016966,2]
[358491650,1745208633047,-500.0,0.00016966,2]
[358491651,1745208633058,-500.0,0.00016966,2]
[358491652,1745208633068,-500.0,0.00016966,2]
[358491653,1745208633077,-500.0,0.00016966,2]
[358491654,1745208633087,-500.0,0.00016966,2]
[358491655,1745208633099,-500.0,0.00016966,2]
[358491656,1745208633108,-500.0,0.00016966,2]
[358491657,1745208633118,-500.0,0.00016966,2]
[358491658,1745208633128,-500.0,0.00016966,2]
[358491659,1745208633137,-500.0,0.00016966,2]
[358491660,1745208633147,-329.426731,0.00016966,2]
[358491661,1745208633157,-500.0,0.00016966,2]
[358491662,1745208633166,-500.0,0.00016966,2]
[358491663,1745208633176,-500.0,0.00016966,2]
[358491664,1745208633186,-500.0,0.00016966,2]
[358491665,1745208633196,-579.25599174,0.00016966,2]
[358491666,1745208633206,-579.25599174,0.00016966,2]
[358491667,1745208633216,-579.25599174,0.00016966,2]
[358491668,1745208633225,-579.25599174,0.00016966,2]
[358491669,1745208633235,-579.25599174,0.00016966,2]
[358491670,1745208633246,-579.25599174,0.00016966,2]
[358491671,1745208633256,-579.25599174,0.00016966,2]
[358491672,1745208633266,-579.25599174,0.00016966,2]
[358491673,1745208633275,-93542.21068344,0.00016967,2]
[358491674,1745208633302,-1312.943154,0.00016967,2]
[358491684,1745208638531,-3652.22222711,0.00016967,2]
[358491685,1745208638693,-41350.03091774,0.00016967,2]
[358491692,1745208640888,-69891.70527,0.00016967,2]
[358491713,1745208646536,-71902.74305911,0.00016967,2]
[358491714,1745208679493,281.6346885,0.00016,7]
[358491715,1745208679520,218.3653115,0.00016,7]
[358491716,1745209205914,-160.0,0.00016684,2]
[358491717,1745209259908,-290.867,0.00015845,2]
[358491756,1745209832548,-259.377187,0.00015816,2]
[358491758,1745209832558,-406.387697,0.00015845,2]
[358491760,1745209832567,-189.5731751,0.00015868,2]
[358491762,1745209832577,-287.0046129,0.00016438,2]
[358491764,1745209832586,-340.99942362,0.00016684,2]
[358491767,1745209832604,-499.00057638,0.00016684,2]
[358491769,1745209832613,-252.45066528,0.00016773,2]
[358491807,1745209838720,-282.83807395,0.00016773,2]
[358491809,1745209838731,-152.86900402,0.000168,2]
[358491812,1745209838741,-300.0,0.00016865,2]
[358491813,1745209838750,-300.0,0.00016865,2]
[358491816,1745209838760,-500.0,0.00016866,2]
[358491818,1745209838770,-4.21603977,0.00016866,2]
[358491825,1745209838829,-495.78396023,0.00016866,2]
[358491827,1745209838838,-500.0,0.00016866,2]
[358491829,1745209838848,-500.0,0.00016866,2]
[358491831,1745209838857,-500.0,0.00016866,2]
[358491833,1745209838870,-392.50376827,0.00016866,2]
[358491835,1745209838880,-500.0,0.00016866,2]
[358491837,1745209838890,-233.89925099,0.00016866,2]
[358491840,1745209838899,-500.0,0.00016866,2]
[358491842,1745209838910,-500.0,0.00016866,2]
[358491844,1745209838920,-500.0,0.00016866,2]
[358491846,1745209838929,-500.0,0.00016866,2]
[358491848,1745209838939,-500.0,0.00016866,2]
[358491850,1745209838948,-525.96988887,0.00016866,2]
[358491852,1745209838958,-500.0,0.00016866,2]
[358491854,1745209838967,-500.0,0.00016866,2]
[358491856,1745209838977,-500.0,0.00016866,2]
[358491858,1745209838986,-500.0,0.00016866,2]
[358491860,1745209838999,-500.0,0.00016866,2]
[358491862,1745209839009,-500.0,0.00016866,2]
[358491864,1745209839018,-500.0,0.00016866,2]
[358491866,1745209839028,-500.0,0.00016866,2]
[358491868,1745209839038,-500.0,0.00016866,2]
[358491870,1745209839048,-500.0,0.00016866,2]
[358491872,1745209839057,-13.88433773,0.00016866,2]
[358491874,1745209839076,-486.11566227,0.00016866,2]
[358491876,1745209839085,-216.1720968,0.00016866,2]
[358492065,1745209841020,-283.8279032,0.00016866,2]
[358492067,1745209841030,-500.0,0.00016866,2]
[358492069,1745209841040,-500.0,0.00016866,2]
[358492071,1745209841049,-579.25599174,0.00016866,2]
[358492073,1745209841060,-378.23947325,0.00016866,2]
[358492075,1745209841070,-579.25599174,0.00016866,2]
[358492077,1745209841080,-579.25599174,0.00016866,2]
[358492079,1745209841090,-579.25599174,0.00016866,2]
[358492081,1745209841100,-579.25599174,0.00016866,2]
[358492083,1745209841109,-579.25599174,0.00016866,2]
[358492085,1745209841118,-579.25599174,0.00016866,2]
[358492087,1745209841128,-579.25599174,0.00016866,2]
[358492089,1745209841137,-250.0,0.00016867,2]
[358492091,1745209841147,-6751.90999268,0.00016867,2]
[358492093,1745209841158,-1856.84192456,0.00016867,2]
[358492688,1745209846757,-3746.78737795,0.00016867,2]
[358492695,1745209846812,-5963.78705967,0.00016867,2]
[358492697,1745209846824,-381.92818453,0.00016867,2]
[358494554,1745210041666,-290.867,0.00015866,2]
[358494555,1745210082867,-290.867,0.00015866,2]
[358494556,1745210103609,-243.021328,0.00015866,2]
[358494557,1745210108590,-245.24624641,0.00015866,2]
[358494558,1745210129329,-152.0,0.00015866,2]
[358494560,1745210177034,-425.682982,0.00015866,2]
[358494561,1745210235224,-174.317018,0.00015866,2]
[358494562,1745210261932,-158.682982,0.00015754,2]
[358494563,1745210355012,-198.61581784,0.00015754,2]
[358494564,1745210372212,-204.17004016,0.00015754,2]
[358494565,1745210372237,-74.42836952,0.00015866,2]
[358494566,1745210403128,-166.5654824,0.00015866,2]
[358494567,1745210569441,-152.0,0.00015866,2]
[358494569,1745210846720,10000.0,0.00025,30]
[358494570,1745210861734,5615.4,0.00025,30]
[358494648,1745211031730,-166.5654824,0.0001574,2]
[358494650,1745211031740,-1556.08155669,0.00015866,2]
[358494652,1745211031752,-1073.36140284,0.00015866,2]
[358494656,1745211031782,-2928.02548684,0.00015866,2]
[358494658,1745211031792,-1891.1640535,0.00015892,2]
[358494660,1745211031802,-250.49901355,0.00016502,2]
[358494662,1745211031811,-468.37764687,0.00016662,2]
[358494664,1745211031821,-198.61581784,0.00016662,2]
[358494666,1745211031830,-1000.0,0.00016673,2]
[358494668,1745211031840,-300.0,0.00016759,2]
[358494670,1745211031850,-300.0,0.0001676,2]
[358494672,1745211031859,-300.0,0.0001676,2]
[358494674,1745211031868,-500.0,0.00016761,2]
[358494676,1745211031877,-500.0,0.00016761,2]
[358494678,1745211031886,-500.0,0.00016761,2]
[358494680,1745211031896,-500.0,0.00016761,2]
[358494682,1745211031906,-500.0,0.00016761,2]
[358494684,1745211031915,-500.0,0.00016761,2]
[358494686,1745211031924,-500.0,0.00016761,2]
[358494688,1745211031933,-500.0,0.00016761,2]
[358494690,1745211031943,-173.24012942,0.00016761,2]
[358494692,1745211031952,-500.0,0.00016761,2]
[358494694,1745211031961,-500.0,0.00016761,2]
[358494696,1745211031970,-321.38930759,0.00016761,2]
[358494698,1745211031979,-579.25599174,0.00016761,2]
[358494699,1745211031989,-264.76763127,0.00016761,2]
[358494700,1745211031998,-79189.09611936,0.00016762,2]
[358494701,1745211032008,-66875.56954106,0.00016762,2]
[358494702,1745211032017,-250.0,0.00016766,2]
[358494703,1745211032027,-101521.74604814,0.00016767,2]
[358494704,1745211032038,-1984.75784622,0.00016767,2]
[358494705,1745211032050,-374.05366051,0.00016767,2]
[358495310,1745211040237,-6320.34202757,0.00016761,3]
[358495312,1745211040248,-13283.95466974,0.00016767,2]
[358495314,1745211040257,-612.79762945,0.00016773,2]
[358495316,1745211040267,-500.0,0.00016773,2]
[358495318,1745211040276,-354.29487964,0.00016773,2]
[358495320,1745211040286,-500.0,0.00016773,2]
[358495322,1745211040295,-502.59319953,0.00016773,2]
[358495323,1745211040304,-500.0,0.00016773,2]
[358495325,1745211040314,-160.50613472,0.00016773,2]
[358495327,1745211040324,-500.0,0.00016773,2]
[358495329,1745211040333,-500.0,0.00016773,2]
[358495331,1745211040343,-500.0,0.00016773,2]
[358495333,1745211040352,-500.0,0.00016773,2]
[358495335,1745211040362,-288.68876295,0.00016773,2]
[358495337,1745211040371,-500.0,0.00016773,2]
[358495339,1745211040383,-502.13596957,0.00016773,2]
[358495341,1745211040394,-500.0,0.00016773,2]
[358495343,1745211040404,-460.55855351,0.00016773,2]
[358495345,1745211040414,-502.3738339,0.00016773,2]
[358495347,1745211040424,-500.0,0.00016773,2]
[358495349,1745211040433,-500.0,0.00016773,2]
[358495351,1745211040443,-477.10251317,0.00016773,2]
[358495353,1745211040452,-500.0,0.00016773,2]
[358495355,1745211040463,-500.0,0.00016773,2]
[358495356,1745211040473,-500.0,0.00016773,2]
[358495358,1745211040482,-500.0,0.00016773,2]
[358495360,1745211040491,-500.0,0.00016773,2]
[358495362,1745211040501,-500.0,0.00016773,2]
[358495364,1745211040511,-500.0,0.00016773,2]
[358495366,1745211040520,-501.80914992,0.00016773,2]
[358495368,1745211040531,-106559.5048231,0.00016888,2]
[358495370,1745211040540,-22065.39442,0.00016999,2]
[358495372,1745211040550,-3827.0,0.00017,2]
[358495374,1745211040560,-207.4,0.00017481,2]
[358495376,1745211040571,-151.0,0.00017481,2]
[358495379,1745211040584,-544.0,0.00017692,2]
[358495381,1745211040599,-403.0,0.00017692,2]
[358495384,1745211040614,-5354.76009554,0.000177,2]
[358495386,1745211040626,-3019.8,0.000179,2]
[358495388,1745211040638,-5354.76009548,0.000179,2]
[358495390,1745211040653,-151.0,0.00018029,2]
[358495393,1745211040667,-420.0,0.0001831,2]
[358495395,1745211040681,-420.0,0.00018401,2]
[358495398,1745211040694,-153.0,0.00018548,2]
[358495400,1745211040707,-153.0,0.00018548,2]
[358495403,1745211040722,-153.0,0.00018548,2]
[358495405,1745211040735,-151.0,0.00018577,2]
[358495407,1745211040748,-153.0,0.00018603,2]
[358495410,1745211040762,-153.0,0.00018603,2]
[358495412,1745211040775,-153.0,0.00018603,2]
[358495415,1745211040790,-153.0,0.00018603,2]
[358495417,1745211040804,-153.0,0.00018603,2]
[358495419,1745211040819,-153.0,0.0001863,2]
[358495421,1745211040830,-153.0,0.0001863,2]
[358495422,1745211040841,-153.51500814,0.0001864,2]
[358495423,1745211040853,-151.0,0.00018866,2]
[358495425,1745211040866,-151.0,0.00018866,2]
[358495427,1745211040879,-151.0,0.00018866,2]
[358495430,1745211040893,-160.0,0.00018866,2]
[358495432,1745211040906,-160.0,0.00018866,2]
[358495435,1745211040919,-420.65680271,0.00018866,2]